[Event "Groningen Festival 2019-B"]
[Site "Groningen"]
[Date "2019.12.22"]
[Round "2.5"]
[White "Torenbosch, Jorn"]
[Black "Salihbegovic, Edim"]
[Result "1/2-1/2"]
[ECO "C56"]
[WhiteElo "1821"]
[BlackElo "2011"]
[Annotator "NA RC"]
[PlyCount "132"]
[EventDate "2019.12.15"]
[EventType "swiss"]
[EventCountry "NED"]
[SourceTitle "playchess.com"]
[Source "ChessBase"]
[SourceQuality "1"]
[TimeControl "40/5400+30:1800+30"]

1. e4 {[%emt 0:00:00]} e5 {[%emt 0:00:00]} 2. Nf3 Nc6 {[%emt 0:01:05]} 3. Bc4 {[%emt 0:02:51]} Nf6 {[%emt 0:00:41]} 4. d4 {[%emt 0:00:08]} exd4 {[%emt 0:01:19]} 5. O-O {[%emt 0:00:16]} Nxe4 {[%emt 0:10:24]} 6. Re1 {[%emt 0:00:19]} d5 {[%emt 0:00:08]} 7. Bxd5 {[%emt 0:00:06]} Qxd5 {[%emt 0:00:03]} 8. Nc3 {[%emt 0:00:10]} Qh5 {[%emt 0:11:59]} 9. Nxe4 {[%emt 0:00:20]} Be6 {[%emt 0:00:37]} 10. Bg5 {[%emt 0:00:35]} h6 {[%emt 0:12:37]} 11. Bf6 {[%emt 0:02:03]} Qd5 {[%emt 0:16:15] C56: Two Knights: 4 d4 exd4 5 0-0 Nxe4} 12. Qe2 $146 {[%emt 0:08:18]} ({Predecessor:} 12. c3 dxc3 13. Qa4 cxb2 14. Rad1 Qa5 15. Qc2 Qxa2 16. Qd3 Be7 17. Bxg7 Rd8 18. Nd4 Nxd4 19. Nf6+ Bxf6 20. Bxf6 Ne2+ 21. Qxe2 Rxd1 22. Rxd1 O-O 23. Qe5 b1=Q 24. Re1 Qg6 25. h3 Qd5 26. Qb2 {0-1 (26) Savchenko,B (2632)-Andreikin,D (2683) Moscow 2010}) 12... d3 {[%emt 0:27:12]} 13. cxd3 {[%emt 0:04:40]} Kd7 {[%emt 0:02:28]} 14. d4 {[%emt 0:05:50]} Re8 {[%emt 0:03:59]} 15. Nc3 {[%emt 0:06:27]} Qc4 {[%emt 0:00:41]} 16. Qe3 {[%emt 0:05:32]} gxf6 {[%emt 0:00:34]} 17. d5 {[%emt 0:00:14]} Bc5 {[%emt 0:01:07]} 18. Qd2 {[%emt 0:07:27]} Kc8 {[%emt 0:01:07]} 19. dxc6 {[%emt 0:00:30]} bxc6 {[%emt 0:00:39]} 20. Re4 {[%emt 0:02:46]} Qa6 {[%emt 0:01:00]} 21. Ra4 {[%emt 0:06:18]} Qb7 {[%emt 0:00:08]} 22. Rc1 {[%emt 0:02:18]} Rd8 {[%emt 0:01:04]} 23. Qc2 {[%emt 0:01:51]} Bb6 {[%emt 0:00:14]} 24. Ne2 {[%emt 0:03:33]} Bd5 {[%emt 0:00:33]} 25. Qf5+ {[%emt 0:03:44]} Kb8 {[%emt 0:00:11]} 26. Qxf6 {[%emt 0:04:25]} Rhg8 {[%emt 0:01:33]} 27. Rg4 {[%emt 0:14:04]} c5 {[%emt 0:02:44]} 28. Rd1 {[%emt 0:01:47]} Rde8 {[%emt 0:00:23]} 29. Rxg8 {[%emt 0:04:54]} Rxg8 {[%emt 0:00:06]} 30. Nc3 {[%emt 0:02:25]} Be6 {[%emt 0:01:19]} 31. Rd8+ {[%emt 0:01:27]} Rxd8 {[%emt 0:00:10]} 32. Qxd8+ {[%emt 0:00:05]} Qc8 {[%emt 0:00:36]} 33. Qe7 {[%emt 0:03:17]} Qg8 {[%emt 0:01:44]} 34. Ne5 {[%emt 0:03:19]} Kb7 {[%emt 0:00:36]} 35. Qh4 {[%emt 0:01:24]} Qe8 {[%emt 0:01:26]} (35... Qh7 $11) 36. Qe4+ {[%emt 0:01:07]} c6 {[%emt 0:00:09]} 37. Nb5 {[%emt 0:01:22]} Bc7 {[%emt 0:01:02]} 38. Nxc7 {[%emt 0:02:12]} Kxc7 {[%emt 0:00:07]} 39. Qa4 {[%emt 0:00:44]} Kb7 {[%emt 0:00:49]} 40. h3 {[%emt 0:00:22]} f6 {[%emt 0:00:30]} 41. Nd3 {[%emt 0:30:38]} Kb6 {[%emt 0:02:21]} 42. b4 {[%emt 0:00:00]} cxb4 {[%emt 0:02:58]} 43. Qxb4+ {[%emt 0:00:00]} Kc7 {[%emt 0:00:41]} 44. Qf4+ {[%emt 0:00:00]} Kc8 {[%emt 0:06:41]} 45. Qa4 {[%emt 0:00:00]} ({But not} 45. Qxh6 $6 Bf5 $14) (45. Qxf6 $16 Bxa2 46. Nf4 (46. Qxh6 Bc4 $16)) 45... Bd5 {[%emt 0:06:06]} 46. Qxa7 {[%emt 0:00:00]} Qe4 $11 {[%emt 0:02:38]} 47. Qa8+ {[%emt 0:00:00]} Kc7 {[%emt 0:00:28]} 48. Qa7+ {[%emt 0:00:00]} Kd8 {[%emt 0:01:04]} 49. Qb8+ {[%emt 0:00:00]} Ke7 {[%emt 0:00:22]} 50. Qb4+ {[%emt 0:00:00]} Qxb4 {[%emt 0:02:54]} 51. Nxb4 {[%emt 0:00:00]} Kd6 {[%emt 0:05:07]} 52. Nxd5 {[%emt 0:00:00]} Kxd5 {[%emt 0:00:07]} 53. Kf1 {[%emt 0:00:00]} Kd4 {[%emt 0:00:03]} 54. Ke2 {[%emt 0:00:00]} Kc3 {[%emt 0:00:09]} 55. Ke3 {[%emt 0:00:11]} c5 {[%emt 0:00:18]} 56. a4 {[%emt 0:03:51]} Kb4 {[%emt 0:01:37]} 57. Kd3 {[%emt 0:00:14]} c4+ {[%emt 0:00:08]} 58. Kc2 {[%emt 0:00:05]} Kxa4 {[%emt 0:00:16]} 59. Kc3 {[%emt 0:00:08]} Kb5 {[%emt 0:00:05]} 60. g4 {[%emt 0:00:29]} Kc5 {[%emt 0:00:31]} 61. f4 {[%emt 0:00:43]} Kd5 {[%emt 0:00:08]} 62. h4 {[%emt 0:00:06]} Ke4 {[%emt 0:02:48]} 63. g5 {[%emt 0:00:08]} hxg5 {[%emt 0:01:22]} 64. hxg5 {[%emt 0:00:41]} fxg5 {[%emt 0:00:11]} 65. fxg5 {[%emt 0:00:08]} Kf5 {[%emt 0:00:07]} 66. g6 {[%emt 0:00:06]} Kf6 {[%emt 0:00:08]} 1/2-1/2

[Event "Groningen Festival 2019-B"]
[Site "Groningen"]
[Date "2019.12.22"]
[Round "2.6"]
[White "Neuendorf, Max"]
[Black "Novotny, David"]
[Result "1/2-1/2"]
[ECO "C12"]
[WhiteElo "1994"]
[BlackElo "1810"]
[Annotator "NA RC"]
[PlyCount "92"]
[EventDate "2019.12.15"]
[EventType "swiss"]
[EventCountry "NED"]
[SourceTitle "playchess.com"]
[Source "ChessBase"]
[SourceQuality "1"]
[TimeControl "40/5400+30:1800+30"]

1. e4 {[%emt 0:00:00]} ({Predecessor:} 1. d4 Nf6 2. Nc3 d5 3. Bg5 e6 {1-0 (30) Zolnierowicz,K (2256)-Szacht,E (2143) Kowalewo Pomorskie 2007}) 1... e6 {[%emt 0:02:30]} 2. d4 {[%emt 0:01:05]} d5 {[%emt 0:00:04]} 3. Nc3 {[%emt 0:00:21]} Nf6 {[%emt 0:00:08]} 4. Bg5 {[%emt 0:00:16]} Bb4 {[%emt 0:00:19]} 5. e5 {[%emt 0:00:14]} h6 {[%emt 0:00:06]} 6. Bc1 {[%emt 0:00:23]} Ne4 {[%emt 0:00:46]} 7. Qg4 {[%emt 0:00:42] C12: French: Classical System: McCutcheon Variation} Kf8 {[%emt 0:07:39]} 8. Nge2 {[%emt 0:05:18]} c5 {[%emt 0:01:03]} 9. a3 {[%emt 0:13:23]} Qa5 $146 {[%emt 0:06:19]} (9... h5 10. Qf4 Ba5 11. dxc5 Nxc3 12. Nxc3 Bxc3+ 13. bxc3 Qa5 14. Bd2 Nc6 {0-1 (53) Naiditsch,A (2702)-Buhmann,R (2564) Germany 2018}) 10. axb4 {[%emt 0:00:27]} Qxa1 {[%emt 0:00:11]} 11. Nxe4 {[%emt 0:01:22]} dxe4 {[%emt 0:00:07]} 12. bxc5 {[%emt 0:04:56]} Bd7 {[%emt 0:08:59]} 13. Qxe4 {[%emt 0:01:31]} Bc6 {[%emt 0:01:01]} 14. Qe3 {[%emt 0:00:27]} Na6 {[%emt 0:01:39]} 15. c3 {[%emt 0:16:38]} Nc7 {[%emt 0:01:51]} 16. Nf4 {[%emt 0:04:45]} a5 {[%emt 0:15:08]} 17. c4 {[%emt 0:28:26]} g5 {[%emt 0:19:24]} 18. Ne2 {[%emt 0:03:29]} Na6 {[%emt 0:02:02]} 19. f3 {[%emt 0:02:54]} Nb4 {[%emt 0:01:24]} 20. Kf2 {[%emt 0:01:07]} a4 {[%emt 0:17:23]} 21. Qa3 {[%emt 0:03:44]} Qxa3 {[%emt 0:02:31]} 22. bxa3 {[%emt 0:00:02]} Nc2 {[%emt 0:00:52]} 23. h4 {[%emt 0:03:39]} Rg8 {[%emt 0:00:53]} 24. hxg5 {[%emt 0:01:54]} hxg5 {[%emt 0:00:07]} 25. g4 {[%emt 0:00:40]} Rd8 {[%emt 0:02:03]} 26. Bb2 {[%emt 0:00:25]} Rb8 {[%emt 0:03:44]} 27. Bg2 {[%emt 0:00:33]} b5 {[%emt 0:02:56]} 28. Rc1 {[%emt 0:00:22]} Nxa3 {[%emt 0:00:36]} 29. Bxa3 {[%emt 0:00:08]} b4 {[%emt 0:00:02]} 30. Rb1 {[%emt 0:00:27]} Ke7 {[%emt 0:00:36]} 31. Rxb4 {[%emt 0:02:53]} Rxb4 {[%emt 0:00:08]} 32. Bxb4 {[%emt 0:00:05]} Rb8 {[%emt 0:00:05]} 33. Bd2 {[%emt 0:02:54]} a3 {[%emt 0:01:23]} 34. Nc3 {[%emt 0:00:52]} Rb2 {[%emt 0:00:34]} 35. Ke1 {[%emt 0:00:31]} f6 {[%emt 0:01:16]} 36. exf6+ {[%emt 0:00:29]} Kxf6 {[%emt 0:00:03]} 37. d5 {[%emt 0:00:34]} exd5 {[%emt 0:00:33]} 38. cxd5 {[%emt 0:00:15]} Bb7 {[%emt 0:01:48]} 39. Kd1 {[%emt 0:00:47]} a2 {[%emt 0:00:41]} 40. Nxa2 {[%emt 0:00:24]} Rxa2 {[%emt 0:00:22]} 41. d6 {[%emt 0:10:31]} Ra1+ {[%emt 0:09:05]} 42. Kc2 $2 {[%emt 0:05:41] [#]} (42. Ke2 $11 Ba6+ 43. Kf2) 42... Rg1 $1 {[%emt 0:05:22]} 43. Bh3 {[%emt 0:07:47]} Bxf3 {[%emt 0:01:06]} 44. Bxg5+ $19 {[%emt 0:01:43]} Kxg5 {[%emt 0:10:00]} 45. d7 {[%emt 0:01:00]} Rd1 {[%emt 0:00:06]} 46. c6 {[%emt 0:01:59]} Bxc6 {[%emt 0:05:40]} 1/2-1/2

[Event "Groningen Festival 2019-B"]
[Site "Groningen"]
[Date "2019.12.23"]
[Round "3.1"]
[White "Akotchik, Victor"]
[Black "Labruyere, Roger"]
[Result "1-0"]
[ECO "B50"]
[WhiteElo "2095"]
[BlackElo "1933"]
[Annotator "NA"]
[PlyCount "95"]
[EventDate "2019.12.15"]
[EventType "swiss"]
[EventCountry "NED"]
[SourceTitle "playchess.com"]
[Source "ChessBase"]
[SourceQuality "1"]
[TimeControl "40/5400+30:1800+30"]

{[%evp 8,79,24,19,12,17,11,22,17,-2,0,-5,-21,-23,-36,-38,-33,-34,-35,-32,-3,-16,-19,-28,17,-43,0,-35,24,-68,191,177,254,269,282,272,444,368,392,254,250,253,269,233,570,605,877,68,870,1034,1004,1200,1100,1265,982,1009,1029,1047,995,1050,1854,1418,1245,1191,1722,1272,32767,32767,32767,32767,32767,32767,32767,29973]} 1. e4 {[%emt 0:00:00]} c5 {[%emt 0:00:00]} 2. Nf3 {[%emt 0:00:14]} d6 {[%emt 0:00:00]} 3. Nc3 {[%emt 0:00:26]} a6 {[%emt 0:00:44]} 4. g3 {[%emt 0:02:10]} g6 {[%emt 0:00:16]} 5. Bg2 {[%emt 0:00:24]} Bg7 {[%emt 0:00:06]} 6. O-O {[%emt 0:01:21] B50: Sicilian: 2...d6, Miscellaneous} Nc6 {[%emt 0:00:21]} 7. d3 {[%emt 0:01:46]} e6 {[%emt 0:02:06]} (7... Nf6 8. Re1 Nd7 9. Be3 O-O 10. Qd2 Nd4 11. Nd1 Nxf3+ 12. Bxf3 Ne5 {½-½ (54) Mamedov,R (2703)-Artemiev,V (2709) St Petersburg 2018}) 8. Nh4 {[%emt 0:01:43]} Nge7 {[%emt 0:02:26]} 9. f4 {[%emt 0:04:53]} O-O {[%emt 0:01:31]} 10. Kh1 {[%emt 0:08:15]} Rb8 {[%emt 0:02:14]} 11. Qe1 $146 {[%emt 0:29:40]} ({Predecessor:} 11. Nf3 Nd4 12. Ne2 b5 13. Nfxd4 cxd4 14. c3 dxc3 15. Nxc3 Qb6 {1-0 (53) Hatziara,D (1484)-Asvestopoulou,E (1689) Porto Rio 2015}) 11... Nd4 {[%emt 0:04:42]} 12. Qf2 {[%emt 0:01:56]} b5 {[%emt 0:08:14]} 13. Nd1 {[%emt 0:01:08]} Qb6 {[%emt 0:04:44]} 14. c3 {[%emt 0:01:38]} Ndc6 {[%emt 0:00:17]} 15. g4 {[%emt 0:02:10]} f5 {[%emt 0:03:20]} 16. Qg3 {[%emt 0:04:27]} (16. gxf5 $1 $11 exf5 17. Ne3) 16... b4 {[%emt 0:09:17]} 17. Bd2 {[%emt 0:03:27]} a5 {[%emt 0:00:39]} (17... fxg4 $15 18. Ne3 bxc3 19. Bxc3 Nd4) 18. Ne3 {[%emt 0:01:17]} (18. gxf5 $11 bxc3 19. Bxc3 exf5 20. Bxg7 Kxg7 21. Ne3) 18... Ba6 $2 {[%emt 0:01:56]} (18... fxe4 $15 {stays ahead.} 19. dxe4 Ba6) 19. gxf5 {[%emt 0:10:21]} exf5 {[%emt 0:01:22]} ({Much weaker is} 19... Bxd3 $6 20. fxg6 Bxf1 21. gxh7+ Kh8 22. Rxf1 $14) (19... gxf5 $142 20. exf5 Kh8) 20. exf5 {[%emt 0:02:10]} Bxd3 {[%emt 0:00:43] [#]} 21. fxg6 $1 {[%emt 0:02:06]} hxg6 {[%emt 0:09:16]} (21... Bxf1 $142 22. Rxf1 Kh8) 22. Nd5 {[%emt 0:02:21]} Qa6 {[%emt 0:03:03]} 23. Rfe1 {[%emt 0:03:14]} Nf5 {[%emt 0:03:50]} 24. Nxf5 {[%emt 0:00:43]} Bxf5 {[%emt 0:00:10]} 25. Nc7 {[%emt 0:00:51]} Qc8 $2 {[%emt 0:01:50]} (25... Qa7) 26. Bd5+ {[%emt 0:00:42]} ({Not} 26. Bxc6 Qxc7 27. Bd5+ Rf7 $14) 26... Kh7 {[%emt 0:02:26]} 27. Qh4+ {[%emt 0:02:49]} ({Weaker is} 27. Bxc6 Bf6 $16) 27... Bh6 {[%emt 0:00:20]} 28. Bxc6 {[%emt 0:00:23]} Qxc7 {[%emt 0:07:23]} 29. Re7+ {[%emt 0:00:49]} Rf7 {[%emt 0:00:08]} 30. Rxc7 {[%emt 0:00:22]} Rxc7 {[%emt 0:00:04]} 31. Bd5 {[%emt 0:00:33]} Re8 {[%emt 0:03:51]} 32. Re1 {[%emt 0:00:29]} Rxe1+ {[%emt 0:00:25]} 33. Bxe1 {[%emt 0:00:44]} a4 {[%emt 0:03:18] [#]} 34. Qd8 $1 {[%emt 0:00:29]} Rg7 {[%emt 0:00:03]} 35. Bd2 {[%emt 0:03:50]} Bd7 {[%emt 0:03:33]} 36. h4 {[%emt 0:02:03]} a3 {[%emt 0:02:43]} 37. bxa3 {[%emt 0:00:36]} bxa3 {[%emt 0:00:02]} 38. c4 {[%emt 0:00:43]} Bf5 {[%emt 0:00:26]} 39. Kg2 {[%emt 0:04:26]} Bb1 {[%emt 0:00:28]} 40. Qxd6 {[%emt 0:01:26]} Bxa2 {[%emt 0:00:42]} 41. Qxc5 {[%emt 0:30:13]} Rd7 {[%emt 0:31:09]} 42. Bg8+ {[%emt 0:01:11]} Kxg8 {[%emt 0:00:31]} 43. Qc8+ {[%emt 0:00:11]} Bf8 {[%emt 0:00:15]} 44. Qxd7 {[%emt 0:00:07]} Bxc4 {[%emt 0:00:04]} 45. Bc3 {[%emt 0:00:00]} Bf7 {[%emt 0:00:00]} 46. Qd4 {[%emt 0:00:00]} Be6 {[%emt 0:00:00]} 47. Qh8+ {[%emt 0:00:00]} Kf7 {[%emt 0:00:00]} 48. Qh7+ {[%emt 0:00:00]} 1-0

[Event "Groningen Festival 2019-B"]
[Site "Groningen"]
[Date "2019.12.23"]
[Round "3.2"]
[White "Noordenbos, Daan"]
[Black "De Winter, Arthur"]
[Result "1/2-1/2"]
[ECO "B33"]
[WhiteElo "2023"]
[BlackElo "1932"]
[Annotator "NA RC"]
[PlyCount "82"]
[EventDate "2019.12.15"]
[EventType "swiss"]
[EventCountry "NED"]
[SourceTitle "playchess.com"]
[Source "ChessBase"]
[SourceQuality "1"]
[TimeControl "40/5400+30:1800+30"]

{[%evp 18,77,16,-7,33,8,79,42,33,60,55,56,88,79,73,84,66,51,72,81,79,25,57,71,62,79,100,-80,-43,-169,-153,-159,-168,-172,-161,-158,-179,-202,-104,-98,-95,-112,-117,-128,-104,-162,0,0,0,0,0,0,0,0,0,0,0,0,0,0,0,0]} 1. e4 {[%emt 0:00:00]} c5 {[%emt 0:00:00]} 2. Nf3 {[%emt 0:00:00]} Nc6 {[%emt 0:00:00]} 3. d4 {[%emt 0:00:00]} cxd4 {[%emt 0:00:00]} 4. Nxd4 {[%emt 0:00:00]} Nf6 {[%emt 0:00:00]} 5. Nc3 {[%emt 0:00:01]} e5 {[%emt 0:00:03]} 6. Ndb5 {[%emt 0:00:06]} d6 {[%emt 0:00:06]} 7. Nd5 {[%emt 0:00:08]} Nxd5 {[%emt 0:00:09]} 8. exd5 {[%emt 0:00:03]} Nb8 {[%emt 0:00:10]} 9. a4 {[%emt 0:00:05]} Be7 {[%emt 0:00:46] B33: Sicilian: Pelikan and Sveshnikov Variations} 10. Be3 {[%emt 0:00:13]} (10. Be2 O-O 11. O-O Nd7 12. Bd2 a6 13. Na3 a5 14. c3 f5 15. b4 f4 16. Nc4 b6 17. Re1 Kh8 18. Rb1 Ba6 {0-1 (33) Svidler,P (2729)-Grischuk,A (2759) Amsterdam 2019}) 10... O-O {[%emt 0:01:17]} 11. a5 {[%emt 0:01:52]} Nd7 {[%emt 0:12:11]} 12. Nxa7 {[%emt 0:06:55]} Bg5 $146 {[%emt 0:04:23]} ({Predecessor:} 12... f5 13. Nxc8 Qxc8 14. f3 Bf6 15. Qb1 Nc5 16. Bf2 e4 17. Be2 exf3 18. gxf3 {1-0 (38) Ronchetti,N (2217)-Bonafede,A (2098) Pesaro 2003}) 13. Bxg5 {[%emt 0:02:47]} Qxg5 {[%emt 0:00:07]} 14. Nb5 {[%emt 0:01:15]} Qg6 {[%emt 0:03:29]} 15. Qd3 {[%emt 0:03:20]} e4 {[%emt 0:05:35]} 16. Qg3 {[%emt 0:01:32]} Qf6 {[%emt 0:00:09]} 17. c3 {[%emt 0:15:12]} Ne5 {[%emt 0:02:06]} 18. Be2 {[%emt 0:01:26]} b6 {[%emt 0:05:40]} 19. Qe3 {[%emt 0:04:38]} Rxa5 {[%emt 0:03:30]} 20. Rxa5 {[%emt 0:04:06]} bxa5 {[%emt 0:00:07]} 21. Qxe4 {[%emt 0:01:59]} Bf5 {[%emt 0:06:53] [#]} 22. Qd4 $2 {[%emt 0:00:59] [#]} (22. Qe3 $1 $16 {is necessary to keep the advantage.}) 22... Qg6 $1 {[%emt 0:01:42]} 23. O-O {[%emt 0:01:50]} (23. Kd2 $15) 23... Bh3 $1 {[%emt 0:00:30]} 24. g3 {[%emt 0:01:17]} Bxf1 {[%emt 0:00:30]} 25. Kxf1 {[%emt 0:00:03]} Qb1+ {[%emt 0:01:33]} 26. Kg2 {[%emt 0:00:15]} Qxb2 {[%emt 0:01:34]} 27. Bf1 {[%emt 0:01:18]} Qa1 {[%emt 0:14:19]} (27... Rc8 $19 28. Nxd6 Qxc3) 28. Nxd6 {[%emt 0:02:29] [#]} Nf3 $1 {[%emt 0:00:35]} 29. Qe3 {[%emt 0:03:40]} Ne1+ {[%emt 0:00:12]} 30. Kg1 {[%emt 0:01:51] [#]} a4 $1 {[%emt 0:00:54]} 31. Nf5 {[%emt 0:06:54] [#]} a3 $2 {[%emt 0:09:05] [#]} (31... Qd1 $1 $19 32. c4 Ra8) 32. Nxg7 $1 {[%emt 0:00:51]} Qb1 {[%emt 0:09:15]} 33. Nh5 {[%emt 0:08:41]} a2 {[%emt 0:01:46]} 34. Qh6 $1 {[%emt 0:00:12]} Nf3+ {[%emt 0:02:06]} (34... Qg6 $5 35. Nf6+ $8 {[#]} Qxf6 $1 {[%mdl 512]} 36. Qxf6 a1=Q $11) 35. Kg2 {[%emt 0:00:26] [#]} Nh4+ $1 {[%emt 0:00:26] Promotion} 36. Kh3 {[%emt 0:00:39]} Qg6 {[%emt 0:00:15]} 37. Nf6+ {[%emt 0:00:48] [#]} Qxf6 $1 {[%emt 0:00:16]} 38. Qxf6 {[%emt 0:00:06]} a1=Q {[%emt 0:00:05]} 39. Kxh4 $11 {[%emt 0:00:24]} Qxf1 {[%emt 0:01:50]} 40. Qg5+ {[%emt 0:00:04]} Kh8 {[%emt 0:00:12]} 41. Qf6+ {[%emt 0:30:04]} Kg8 {[%emt 0:30:04]} 1/2-1/2

[Event "Groningen Festival 2019-B"]
[Site "Groningen"]
[Date "2019.12.23"]
[Round "3.3"]
[White "Kubat, Pavel"]
[Black "Zuiderweg, Edwin"]
[Result "0-1"]
[ECO "D02"]
[WhiteElo "1914"]
[BlackElo "1951"]
[Annotator "NA RC"]
[PlyCount "72"]
[EventDate "2019.12.15"]
[EventType "swiss"]
[EventCountry "NED"]
[SourceTitle "playchess.com"]
[Source "ChessBase"]
[SourceQuality "1"]
[TimeControl "40/5400+30:1800+30"]

{[%evp 8,60,-29,-52,-27,-33,-32,-40,-29,-96,-100,-114,-96,-97,-99,-117,-91,-151,-108,-129,-110,-116,-118,-121,-118,-121,-144,-140,-85,-81,-86,-83,-62,-112,-121,-125,-127,-137,-142,-131,-120,-233,-184,-211,-162,-616,-608,-932,-939,-937,-987,-976,-1000,-996,-1037]} 1. g3 {[%emt 0:00:01]} d5 {[%emt 0:00:00]} 2. Bg2 {[%emt 0:00:19]} c5 {[%emt 0:00:22]} 3. d4 {[%emt 0:03:38]} cxd4 {[%emt 0:01:20]} 4. Qxd4 {[%emt 0:02:59]} Nf6 {[%emt 0:02:50]} 5. Nf3 {[%emt 0:03:18]} Nc6 {[%emt 0:00:29]} 6. Qd1 {[%emt 0:00:48]} e5 {[%emt 0:01:46]} 7. O-O {[%emt 0:01:22] D02: 1 d4 d5 2 Nf3 sidelines, including 2...Nf6 3 g3 and 2...Nf6 3 Bf4} Be7 {[%emt 0:02:41]} (7... Bc5 8. c4 dxc4 9. Qxd8+ Kxd8 10. Nbd2 Ke7 11. Nxc4 e4 12. Ng5 Bf5 13. Be3 Bxe3 14. Nxe3 Bg6 {0-1 (52) Ju,W (2568)-Muzychuk,M (2529) Beijing 2014}) 8. a3 {[%emt 0:18:01]} (8. c4 $15) 8... O-O {[%emt 0:00:52]} 9. b4 {[%emt 0:00:33]} e4 $146 {[%emt 0:16:01]} ({Predecessor:} 9... a6 10. Bb2 Qc7 11. Nbd2 h6 12. Rc1 Rd8 13. c4 dxc4 14. Rxc4 Be6 15. Bxe5 {0-1 (46) Sarmiento Tobon,L (1744)-Melgosa,M (2253) Bogota 2013}) 10. Nd4 {[%emt 0:05:45]} Nxd4 {[%emt 0:01:24]} 11. Qxd4 {[%emt 0:00:09]} Ng4 {[%emt 0:00:27]} 12. c3 {[%emt 0:02:30]} Bf6 {[%emt 0:00:26]} 13. Qd1 {[%emt 0:03:50]} Be6 {[%emt 0:02:12]} 14. h3 {[%emt 0:03:52]} Ne5 {[%emt 0:00:14]} 15. Be3 {[%emt 0:00:24]} Rc8 {[%emt 0:23:42]} 16. Bc5 {[%emt 0:11:55]} Re8 {[%emt 0:01:50]} 17. Nd2 {[%emt 0:00:09]} Nd7 {[%emt 0:12:34]} 18. Bd4 {[%emt 0:02:01]} Bxd4 {[%emt 0:02:45]} 19. cxd4 {[%emt 0:01:04]} Nb6 {[%emt 0:00:11]} 20. Rc1 {[%emt 0:14:09]} Qd7 {[%emt 0:00:24]} 21. Kh2 {[%emt 0:01:19]} Rxc1 {[%emt 0:00:46]} 22. Qxc1 {[%emt 0:00:07]} Rc8 {[%emt 0:00:07]} 23. Qb1 {[%emt 0:06:58]} Qa4 {[%emt 0:02:59]} 24. Qa1 {[%emt 0:16:00]} (24. Nb3 $17) 24... Qc2 {[%emt 0:04:10]} 25. Rd1 {[%emt 0:00:09]} Na4 {[%emt 0:00:17]} 26. Qb1 $2 {[%emt 0:00:46]} (26. Nf1) 26... Nb2 {[%emt 0:00:54]} 27. Nxe4 {[%emt 0:00:50]} Nxd1 {[%emt 0:01:42]} 28. Qxc2 {[%emt 0:00:27]} Rxc2 {[%emt 0:00:11]} 29. Nc5 {[%emt 0:00:31]} Rxe2 {[%emt 0:01:10]} 30. Nxb7 $19 {[%emt 0:00:33]} Rxf2 {[%emt 0:00:15]} 31. Kg1 {[%emt 0:00:14]} Ra2 {[%emt 0:00:41]} 32. Na5 {[%emt 0:00:41]} Ne3 {[%emt 0:00:34]} 33. Bf3 {[%emt 0:00:21]} Rxa3 {[%emt 0:00:34]} 34. Kf2 {[%emt 0:00:38]} Nc2 {[%emt 0:01:10]} 35. Nc6 {[%emt 0:00:02]} Rb3 {[%emt 0:02:19]} 36. Bd1 {[%emt 0:01:02]} Rb2 {[%emt 0:01:00]} 0-1

[Event "Groningen Festival 2019-B"]
[Site "Groningen"]
[Date "2019.12.23"]
[Round "3.4"]
[White "De Vries, Leon"]
[Black "Waardenburg, Feline"]
[Result "1-0"]
[ECO "D70"]
[WhiteElo "1934"]
[BlackElo "1769"]
[Annotator "NA RC"]
[PlyCount "75"]
[EventDate "2019.12.15"]
[EventType "swiss"]
[EventCountry "NED"]
[SourceTitle "playchess.com"]
[Source "ChessBase"]
[SourceQuality "1"]
[TimeControl "40/5400+30:1800+30"]

{[%evp 9,75,40,0,34,13,10,23,13,86,74,97,85,78,113,100,103,107,27,28,26,69,68,59,66,139,157,275,266,268,259,271,289,417,229,245,156,161,141,155,168,32767,32767,32767,32767,32767,32767,343,515,622,532,383,32767,32767,32767,32767,32767,32767,2335,5481,5171,5218,11645,12449,29974,12838,29979,29977,29981]} 1. d4 {[%emt 0:00:00]} Nf6 {[%emt 0:00:00]} 2. c4 {[%emt 0:00:00]} g6 {[%emt 0:00:00]} 3. f3 {[%emt 0:00:05]} d5 {[%emt 0:00:07]} 4. cxd5 {[%emt 0:00:13]} Nxd5 {[%emt 0:00:18]} 5. e4 {[%emt 0:00:19]} Nb6 {[%emt 0:00:35]} 6. Nc3 {[%emt 0:00:27]} Bg7 {[%emt 0:00:34]} 7. Be3 {[%emt 0:00:23]} O-O {[%emt 0:00:54]} 8. Qd2 {[%emt 0:01:16]} e6 {[%emt 0:04:13] D70: Grünfeld: Unusual White 3rd moves (met by ...d5)} (8... e5 $11 {keeps the balance.} 9. d5 f5 (9... c6 10. Rd1 cxd5 11. exd5 N8d7 12. Nh3 e4 13. fxe4 Ne5 14. Nf2 f5 15. Bc5 Rf7 16. Be2 f4 17. Bf3 {½-½ (25) Aronian,L (2805)-Vachier Lagrave,M (2789) London 2017})) 9. h4 {[%emt 0:04:05]} Nc6 {[%emt 0:01:30] [#]} 10. O-O-O $1 {[%emt 0:00:36]} e5 $146 {[%emt 0:09:34] [#]} ({Predecessor:} 10... Qe7 11. h5 Rd8 12. hxg6 hxg6 13. Bg5 f6 14. Be3 Na5 15. Qf2 {1-0 (40) Anfinogenov,A (2065)-Pak,N (1916) Moscow 2019}) 11. d5 $1 {[%emt 0:04:13]} Nd4 {[%emt 0:00:34]} 12. h5 {[%emt 0:09:40]} c6 {[%emt 0:07:20]} 13. hxg6 {[%emt 0:01:58]} fxg6 {[%emt 0:00:41]} 14. Bh6 {[%emt 0:11:50]} Rf7 {[%emt 0:05:20]} 15. Bxg7 $1 {[%emt 0:04:47]} Rxg7 {[%emt 0:00:09]} 16. Nge2 {[%emt 0:09:29]} Nc4 {[%emt 0:15:18]} (16... c5 $14) 17. Qd3 {[%emt 0:02:43]} cxd5 {[%emt 0:01:06]} (17... Nxe2+ $16 18. Bxe2 Qg5+ 19. Kb1 Ne3) 18. Nxd4 {[%emt 0:02:55]} ({Less strong is} 18. Nxd5 Nxe2+ 19. Bxe2 Be6 $14) 18... exd4 {[%emt 0:04:47]} 19. Qxd4 {[%emt 0:02:22]} ({Much less strong is} 19. Nxd5 $6 Nb6 $16) 19... Qg5+ {[%emt 0:01:17]} 20. Kb1 {[%emt 0:01:12]} Ne3 {[%emt 0:01:01]} 21. Nxd5 {[%emt 0:12:53]} (21. f4 $142 Qxf4 22. Nxd5 Nxd5 23. Qxd5+ Kh8 24. Qd8+ Rg8 25. Qe7 Qxe4+ {[%mdl 64] Remove Defender} 26. Qxe4) 21... Nxd5 {[%emt 0:13:32]} 22. Qxd5+ {[%emt 0:00:15]} ({Better is} 22. Bc4 $18 Be6 23. exd5 (23. Bxd5 Bxd5 24. Qxd5+ Qxd5 $16)) 22... Qxd5 {[%emt 0:00:09]} 23. Rxd5 {[%emt 0:00:54]} Be6 {[%emt 0:00:22]} 24. Rd6 {[%emt 0:00:23]} Re7 {[%emt 0:01:21]} 25. Rxe6 {[%emt 0:00:35]} Rxe6 {[%emt 0:00:41]} 26. Bc4 {[%emt 0:00:07]} Rae8 {[%emt 0:00:06]} 27. Rd1 {[%emt 0:02:38]} Kf7 {[%emt 0:07:16]} 28. Rd6 {[%emt 0:02:11] Pin} Kf6 {[%emt 0:00:36]} 29. Rxe6+ {[%emt 0:00:07]} Rxe6 {[%emt 0:00:17]} 30. Bxe6 {[%emt 0:00:07]} Kxe6 {[%emt 0:00:26]} 31. Kc2 {[%emt 0:00:13]} h5 {[%emt 0:01:45]} 32. Kd3 {[%emt 0:00:42]} h4 {[%emt 0:02:35]} 33. f4 {[%emt 0:01:29]} Kf6 {[%emt 0:01:35]} 34. Ke3 {[%emt 0:00:39]} g5 {[%emt 0:04:07]} 35. f5 {[%emt 0:01:33]} b5 {[%emt 0:05:10]} 36. b4 {[%emt 0:00:24]} a6 {[%emt 0:00:36]} 37. a3 {[%emt 0:00:06]} Ke5 {[%emt 0:01:25]} 38. Kf3 {[%emt 0:00:08] Kd5} 1-0